bitfinex-derivatives/quotes_SOLF0:USTF0_20250528
["timestamp","ask_amount","ask_price","bid_price","bid_amount"]
[1748452097149,0.0421596,171.44,171.43,5.831]
[1748452103555,5.8288,171.5,171.47,5.8294]
[1748452103758,30.8,171.52,171.47,5.8294]
[1748452104264,30.8,171.52,171.46,5.8299]
[1748452104667,5.8291,171.49,171.47,0.04397496]
[1748452105266,5.8291,171.49,171.47,5.87357496]
[1748452106064,5.8291,171.49,171.47,0.04397496]
[1748452106668,5.86598381,171.51,171.47,0.04397496]
[1748452106865,0.03758381,171.51,171.47,0.04397496]
[1748452107269,5.8293,171.48,171.47,0.04397496]
[1748452109467,5.8289,171.5,171.47,0.04397496]
[1748452109666,5.8289,171.5,171.47,5.87347496]
[1748452110064,5.86618381,171.51,171.47,0.04397496]
[1748452110464,5.86618381,171.51,171.48,5.8291]
[1748452110673,0.03758381,171.51,171.47,0.04397496]
[1748452110870,0.03758381,171.51,171.49,5.8288]
[1748452111772,0.03758381,171.51,171.5,5.8286]
[1748452114569,45.36022872,171.59,171.47,0.04397496]
[1748452114570,45.36022872,171.59,171.53,5.8274]
[1748452114763,34.69,171.59,171.5,30.8]
[1748452115165,5.8261,171.58,171.55,5.8266]
[1748452115376,1.9858,171.6,171.5,30.8]
[1748452115668,503.66,171.93,171.59,10.64750291]
[1748452115864,17.49,171.91,171.7,10.64750291]
[1748452116064,34.8898,171.92,171.71,32.8633]
[1748452116261,5.8182,171.81,171.71,32.8633]
[1748452116468,30.8,171.82,171.71,32.8633]
[1748452116670,0.04205226,171.78,171.75,0.04464491]
[1748452116868,0.04264417,171.78,171.75,0.03775052]
[1748452117468,5.86204417,171.78,171.75,0.03775052]
[1748452117674,0.04264417,171.78,171.75,0.03775052]
[1748452117975,5.8209,171.73,171.65,38.6726]
[1748452118365,5.8209,171.73,171.65,32.8491]
[1748452118565,5.8205,171.74,171.66,5.8231]
[1748452118774,30.76,171.76,171.65,43.48736506]
[1748452118972,0.04231641,171.72,171.69,0.04335068]
[1748452120167,30.76,171.87,171.7,10.63100894]
[1748452120368,30.76,171.87,171.73,10.62739228]
[1748452120567,5.818,171.82,171.74,1.9943]
[1748452120772,30.76,171.87,171.74,1.9943]
[1748452120773,10.62722534,171.85,171.74,3.9186]
[1748452121171,0.04275303,171.81,171.6,11.65]
[1748452121368,30.74,171.81,171.67,10.62722534]
[1748452122066,30.74,171.81,171.65,34.6586]
[1748452122269,0.03988777,171.75,171.71,0.0400516]
[1748452122873,5.8212,171.72,171.71,0.0400516]
[1748452125265,5.8208,171.74,171.71,0.0400516]
[1748452125780,0.03988777,171.75,171.71,0.0400516]
[1748452126267,5.86038777,171.75,171.71,0.0400516]
[1748452126470,0.03988777,171.75,171.71,0.0400516]
[1748452126970,5.8208,171.74,171.71,0.0400516]
[1748452128679,5.8209,171.73,171.71,0.0400516]
[1748452129375,5.8205,171.74,171.71,0.0400516]
[1748452130076,5.8209,171.73,171.71,0.0400516]
[1748452130674,5.8206,171.74,171.71,0.0400516]
[1748452130871,0.03988777,171.75,171.71,0.0400516]
[1748452131076,0.03988777,171.75,171.71,5.8613516]
[1748452131378,0.03988777,171.75,171.71,0.0400516]
[1748452131879,5.8209,171.73,171.71,0.0400516]
[1748452132776,0.03988777,171.75,171.71,0.0400516]
[1748452132777,5.8212,171.72,171.71,0.0400516]
[1748452134974,5.8223,171.69,171.65,30.74]
[1748452135171,30.72,171.73,171.65,30.74]
[1748452135371,30.72,171.73,171.66,5.823]
[1748452135580,5.822,171.7,171.66,5.823]
[1748452135977,5.86267918,171.7,171.67,5.8228]
[1748452136180,0.04067918,171.7,171.67,5.8228]
[1748452136978,0.04067918,171.7,171.68,5.8225]
[1748452137179,0.04067918,171.7,171.66,0.04394382]
[1748452138079,0.04067918,171.7,171.68,5.8223]
[1748452138272,0.04067918,171.7,171.66,0.04394382]
[1748452139476,30.72,171.78,171.66,0.04394382]
[1748452139781,15.7566239,171.77,171.65,30.74]
[1748452139985,5.8212,171.73,171.65,30.74]
[1748452140379,0.04433771,171.71,171.69,5.822]
[1748452140580,0.04433771,171.71,171.67,0.04202102]
[1748452141084,30.72,171.7,171.67,0.04202102]
[1748452141385,30.72,171.7,171.61,32.657]
[1748452141590,6.05133771,171.71,171.61,32.657]
[1748452141591,3.9999,171.71,171.61,32.657]
[1748452141883,30.72,171.73,171.61,32.657]
[1748452142083,5.8213,171.72,171.69,5.8221]
[1748452142477,5.86321188,171.72,171.69,5.8656437]
[1748452142680,0.04191188,171.72,171.7,5.8219]
[1748452142890,0.04191188,171.72,171.69,0.0435437]
[1748452143789,5.8218,171.71,171.69,0.0435437]
[1748452144788,0.04191188,171.72,171.71,5.8216]
[1748452144991,0.04191188,171.72,171.69,0.0435437]
[1748452145582,0.04191188,171.72,171.7,5.8217]
[1748452146685,30.74,171.71,171.69,0.0435437]
[1748452146978,30.74,171.71,171.61,1.937]
[1748452147685,5.822,171.7,171.67,5.8228]
[1748452147886,0.04355723,171.7,171.67,0.03989481]
[1748452148287,5.86565723,171.7,171.67,5.86279481]
[1748452148489,0.04355723,171.7,171.67,0.03989481]
[1748452148987,0.04355723,171.7,171.59,32.7073]
[1748452149289,5.8228,171.68,171.64,5.8237]
[1748452149598,32.6854,171.71,171.64,5.8237]
[1748452150096,32.6854,171.71,171.66,0.04267125]
[1748452150097,5.8232,171.67,171.66,0.04267125]
[1748452150485,0.0409435,171.69,171.66,0.04267125]
[1748452151290,5.8229,171.67,171.66,0.04267125]
[1748452153692,5.8242,171.64,171.59,30.74]
[1748452153894,30.72,171.67,171.59,30.74]
[1748452154190,30.72,171.67,171.57,2.0599]
[1748452154191,5.8243,171.64,171.57,2.0599]
[1748452154393,30.72,171.67,171.57,2.0599]
[1748452154394,1.94,171.68,171.57,2.0599]
[1748452154697,0.04245045,171.64,171.61,0.04167308]
[1748452155892,0.04245045,171.64,171.63,5.8241]
[1748452157588,30.72,171.7,171.61,0.04167308]
[1748452158305,30.72,171.7,171.61,10.69158128]
[1748452158505,0.04174831,171.67,171.61,12.59848128]
[1748452158705,0.04174831,171.67,171.66,5.8233]
[1748452162006,0.04174831,171.67,171.65,5.8235]
[1748452162307,0.04174831,171.67,171.62,0.03834752]
[1748452162700,0.04174831,171.67,171.65,5.8234]
[1748452162904,5.86474831,171.67,171.65,5.8234]
[1748452163112,5.86474831,171.67,171.64,5.8238]
[1748452163407,5.86474831,171.67,171.62,0.03834752]
[1748452163608,0.04174831,171.67,171.62,0.03834752]
[1748452163908,0.04174831,171.67,171.64,5.8239]
[1748452164706,5.8233,171.66,171.64,5.8239]
[1748452164898,0.04174831,171.67,171.62,0.03834752]
[1748452165907,0.04174831,171.67,171.66,5.8233]
[1748452166798,4.831e-05,171.67,171.66,5.8233]
[1748452167201,4.831e-05,171.67,171.66,7.9086]
[1748452171317,4.831e-05,171.67,171.66,5.8233]
[1748452180412,2.0341,171.76,171.73,5.8207]
[1748452181018,2.0341,171.76,171.69,30.84]
[1748452181418,0.042473,171.74,171.71,0.04399767]
[1748452181623,0.042473,171.74,171.73,5.8209]
[1748452182428,0.042473,171.74,171.72,5.8211]
[1748452182724,0.042473,171.74,171.71,0.04399767]
[1748452182927,0.042473,171.74,171.72,5.8213]
[1748452183125,0.042473,171.74,171.71,0.04399767]
[1748452184218,0.042473,171.74,171.73,5.8209]
[1748452189229,0.042473,171.74,171.72,5.8212]
[1748452190024,0.042473,171.74,171.71,5.86559767]
[1748452190227,0.042473,171.74,171.71,0.04399767]
[1748452191526,5.8212,171.73,171.71,0.04399767]
[1748452191933,5.8212,171.73,171.71,5.86559767]
[1748452192234,0.042473,171.74,171.71,5.86559767]
[1748452192834,5.863073,171.74,171.72,5.8213]
[1748452193034,5.863073,171.74,171.71,0.04399767]
[1748452193226,0.042473,171.74,171.71,5.86539767]
[1748452193533,5.863173,171.74,171.71,0.04399767]
[1748452193930,0.042473,171.74,171.72,5.8212]
[1748452194630,0.042473,171.74,171.71,0.04399767]
[1748452195030,5.8212,171.73,171.71,0.04399767]
[1748452195234,5.8212,171.73,171.71,5.86559767]
[1748452195535,5.8212,171.73,171.71,0.04399767]
[1748452196830,5.863173,171.74,171.71,5.86559767]
[1748452197036,0.042473,171.74,171.71,0.04399767]
[1748452197632,5.863173,171.74,171.71,0.04399767]
[1748452198435,0.042473,171.74,171.71,0.04399767]
[1748452199038,0.042473,171.74,171.73,5.8209]
[1748452199239,0.042473,171.74,171.71,0.04399767]
[1748452200334,5.863073,171.74,171.71,5.86549767]
[1748452200735,0.042473,171.74,171.71,5.86549767]
[1748452201640,5.8213,171.72,171.71,0.04399767]
[1748452201839,0.042473,171.74,171.71,0.04399767]
[1748452202443,5.8212,171.73,171.71,0.04399767]
[1748452203937,5.8213,171.72,171.71,0.04399767]
[1748452207540,30.84,171.73,171.53,20.04393197]
[1748452207742,1.9568,171.72,171.63,30.84]
[1748452208143,5.8218,171.71,171.69,5.8223]
[1748452210142,5.8218,171.71,171.68,5.86607702]
[1748452210346,7.81553649,171.72,171.68,0.04347702]
[1748452210549,1.99393649,171.72,171.68,0.04347702]
[1748452210843,5.8222,171.7,171.68,0.04347702]
[1748452211037,1.99393649,171.72,171.68,0.04347702]
[1748452211842,1.99393649,171.72,171.71,5.8216]
[1748452212250,1.99393649,171.72,171.68,0.04347702]
[1748452212441,1.99393649,171.72,171.7,5.8218]
[1748452212646,1.99393649,171.72,171.68,0.04347702]
[1748452213944,1.99393649,171.72,171.71,5.8216]
[1748452214654,1.99393649,171.72,171.68,0.04347702]
[1748452215042,0.03713649,171.72,171.68,0.04347702]
[1748452215451,0.03713649,171.72,171.71,5.8216]
[1748452219857,0.03713649,171.72,171.68,0.04347702]
[1748452220958,0.03713649,171.72,171.69,5.822]
[1748452221961,0.03713649,171.72,171.7,5.822]
[1748452222259,0.03713649,171.72,171.68,0.04347702]
[1748452222465,5.8218,171.71,171.68,0.04347702]
[1748452222657,0.03713649,171.72,171.68,0.04347702]
[1748452223256,30.75713649,171.72,171.68,0.04347702]
[1748452223762,5.8223,171.69,171.68,0.04347702]
[1748452225356,5.8221,171.7,171.68,0.04347702]
[1748452225562,30.75713649,171.72,171.68,0.04347702]
[1748452226562,0.03713649,171.72,171.68,0.04347702]
[1748452227157,0.03713649,171.72,171.7,5.822]
[1748452227357,0.03713649,171.72,171.68,0.04347702]
[1748452227557,0.03713649,171.72,171.71,5.8216]
[1748452231065,5.819,171.79,171.74,5.8204]
[1748452231464,30.72,171.82,171.72,30.72]
[1748452231656,30.72,171.82,171.73,5.8209]
[1748452232062,0.04435713,171.79,171.76,0.03692078]
[1748452232473,5.8193,171.78,171.76,0.03692078]
[1748452232769,0.04435713,171.79,171.76,0.03692078]
[1748452233069,5.8196,171.77,171.76,0.03692078]
[1748452234066,5.8194,171.78,171.76,0.03692078]
[1748452234272,0.04435713,171.79,171.76,0.03692078]
[1748452235764,5.8195,171.78,171.76,0.03692078]
[1748452236559,5.86345713,171.79,171.76,5.85682078]
[1748452236774,0.04435713,171.79,171.76,0.03692078]
[1748452236970,5.86355713,171.79,171.76,0.03692078]
[1748452237364,0.04435713,171.79,171.76,0.03692078]
[1748452238171,0.04435713,171.79,171.77,5.8194]
[1748452238365,0.04435713,171.79,171.76,0.03692078]
[1748452238566,0.04435713,171.79,171.77,5.8196]
[1748452239077,0.04435713,171.79,171.76,0.03692078]
[1748452240975,0.04435713,171.79,171.77,5.8193]
[1748452241277,0.04435713,171.79,171.76,0.03692078]
[1748452243173,0.04435713,171.79,171.77,5.8194]
[1748452243874,0.04435713,171.79,171.76,0.03692078]
[1748452245180,0.04435713,171.79,171.77,5.8196]
[1748452245881,0.04435713,171.79,171.76,0.03692078]
[1748452246069,0.04435713,171.79,171.77,5.8196]
[1748452246275,0.04435713,171.79,171.76,0.03692078]
[1748452246881,0.04435713,171.79,171.77,5.8193]
[1748452247082,0.04435713,171.79,171.76,0.03692078]
[1748452247581,0.04435713,171.79,171.77,5.8193]
[1748452247978,0.04435713,171.79,171.76,0.03692078]
[1748452248382,0.04435713,171.79,171.78,5.8193]
[1748452248580,0.04435713,171.79,171.76,0.03692078]
[1748452249480,5.86325713,171.79,171.76,5.85672078]
[1748452249783,0.04435713,171.79,171.76,0.03692078]
[1748452250184,5.8195,171.78,171.76,0.03692078]
[1748452250481,0.04435713,171.79,171.76,0.03692078]
[1748452250681,5.86355713,171.79,171.76,5.85682078]
[1748452251081,5.86355713,171.79,171.76,0.03692078]
[1748452251684,5.86355713,171.79,171.76,5.85672078]
[1748452251886,0.04435713,171.79,171.76,5.85672078]
[1748452252585,5.8195,171.78,171.76,0.03692078]
[1748452253183,5.8195,171.78,171.76,5.85682078]
[1748452253785,5.8196,171.77,171.76,0.03692078]
[1748452262192,36.4994,171.78,171.76,0.03692078]
[1748452262486,30.68,171.78,171.76,0.03692078]
[1748452262990,5.8196,171.77,171.76,0.03692078]
[1748452265490,34.6493,171.78,171.76,0.03692078]
[1748452265792,30.68,171.78,171.76,0.03692078]
[1748452266789,30.68,171.78,171.76,5.85662078]
[1748452267186,30.68,171.78,171.76,0.03692078]
[1748452267592,36.4996,171.78,171.76,0.03692078]
[1748452268087,30.68,171.78,171.76,0.03692078]
[1748452269096,30.68,171.78,171.76,5.85662078]
[1748452269295,30.68,171.78,171.76,0.03692078]
[1748452269490,0.04435713,171.79,171.76,0.03692078]
[1748452269793,5.86335713,171.79,171.76,0.03692078]
[1748452270095,5.86335713,171.79,171.76,5.85672078]
[1748452270698,0.04435713,171.79,171.76,5.85672078]
[1748452271197,5.8194,171.78,171.76,5.85672078]
[1748452273002,5.8196,171.77,171.76,0.03692078]
[1748452276300,5.8195,171.78,171.76,5.85682078]
[1748452276500,5.8195,171.78,171.76,0.03692078]
[1748452277606,5.86325713,171.79,171.76,5.85672078]
[1748452277802,0.04435713,171.79,171.76,5.85672078]
[1748452278197,0.04435713,171.79,171.76,0.03692078]
[1748452279302,0.04435713,171.79,171.78,5.8193]
[1748452280605,0.04435713,171.79,171.76,5.85652078]
[1748452280797,0.04435713,171.79,171.76,0.03692078]
[1748452282702,0.04435713,171.79,171.77,5.8194]
[1748452283506,0.04435713,171.79,171.78,5.8193]
[1748452284104,0.04435713,171.79,171.77,5.8195]
[1748452284702,5.86355713,171.79,171.76,5.85672078]
[1748452284906,0.04435713,171.79,171.76,0.03692078]
[1748452285307,0.04435713,171.79,171.77,5.8194]
[1748452286107,0.04435713,171.79,171.78,5.8193]
[1748452286609,0.04435713,171.79,171.76,0.03692078]
[1748452286997,0.04435713,171.79,171.77,5.8194]
[1748452288408,5.86325713,171.79,171.77,5.8194]
[1748452288905,0.04435713,171.79,171.76,0.03692078]
[1748452289409,10.6499082,171.77,171.72,5.8211]
[1748452289599,5.8204,171.75,171.7,30.68]
[1748452290107,5.82,171.76,171.73,5.8209]
[1748452290296,5.82,171.76,171.73,0.03985755]
[1748452290297,0.04006908,171.76,171.73,0.03985755]
[1748452290703,5.86006908,171.76,171.73,5.86055755]
[1748452291908,5.8204,171.75,171.73,0.03985755]
[1748452292309,5.86006908,171.76,171.73,5.86085755]
[1748452292512,0.04006908,171.76,171.73,5.86085755]
[1748452294011,5.8203,171.75,171.73,5.86085755]
[1748452296215,5.8203,171.75,171.73,0.03985755]
[1748452296416,5.86016908,171.76,171.73,0.03985755]
[1748452296915,5.86016908,171.76,171.73,5.86075755]
[1748452297619,0.04006908,171.76,171.73,0.03985755]
[1748452298919,5.86026908,171.76,171.73,5.86075755]
[1748452299119,0.04006908,171.76,171.73,0.03985755]
[1748452299620,0.04006908,171.76,171.74,5.8204]
[1748452300219,0.04006908,171.76,171.75,5.8203]
[1748452300721,0.04006908,171.76,171.73,0.03985755]
[1748452300920,0.04006908,171.76,171.74,5.8205]
[1748452301319,0.04006908,171.76,171.75,5.8203]
[1748452301723,0.04006908,171.76,171.73,0.03985755]
[1748452301918,0.04006908,171.76,171.74,5.8204]
[1748452303928,0.04006908,171.76,171.75,5.8203]
[1748452306734,0.04006908,171.76,171.74,5.8206]
[1748452307038,0.04006908,171.76,171.73,0.03985755]
[1748452307928,0.04006908,171.76,171.75,5.8203]
[1748452308330,0.04006908,171.76,171.73,0.03985755]
[1748452308535,5.8204,171.75,171.73,5.86055755]
[1748452308730,0.04006908,171.76,171.73,5.86055755]
[1748452309035,5.86016908,171.76,171.73,5.86055755]
[1748452309337,0.04006908,171.76,171.73,0.03985755]
[1748452310432,5.8206,171.74,171.73,0.03985755]
[1748452314834,5.8204,171.75,171.73,0.03985755]
[1748452315334,0.04006908,171.76,171.73,0.03985755]
[1748452316140,5.86016908,171.76,171.73,0.03985755]
[1748452316742,0.04006908,171.76,171.73,5.86075755]
[1748452317041,0.04006908,171.76,171.73,0.03985755]
[1748452317435,0.04006908,171.76,171.74,5.8204]
[1748452317634,0.04006908,171.76,171.73,0.03985755]
[1748452317831,0.04006908,171.76,171.73,5.86065755]
[1748452319131,5.85996908,171.76,171.73,5.86065755]
[1748452319440,0.04006908,171.76,171.73,5.86065755]
[1748452321541,5.86006908,171.76,171.73,5.86065755]
[1748452322246,5.86006908,171.76,171.73,0.03985755]
[1748452324544,5.86006908,171.76,171.73,5.86085755]
[1748452326645,0.04006908,171.76,171.73,0.03985755]
[1748452327639,0.04006908,171.76,171.74,5.8204]
[1748452327948,6.8076476,171.75,171.73,0.03985755]
[1748452328144,6.8076476,171.75,171.73,5.86075755]
[1748452329448,0.04006908,171.76,171.74,5.8205]
[1748452329636,6.84771668,171.76,171.74,5.8205]
[1748452330342,0.04006908,171.76,171.74,5.8205]
[1748452330947,0.04006908,171.76,171.75,5.8203]
[1748452332844,6.8076476,171.83,171.8,5.8183]
[1748452333039,6.8076476,171.83,171.74,37.4876476]
[1748452333445,6.8076476,171.81,171.74,37.4876476]
[1748452333749,32.6464,171.86,171.76,0.03686679]
[1748452333750,6.8461668,171.79,171.76,0.03686679]
[1748452333954,6.84642593,171.79,171.76,5.85656679]
[1748452334242,0.03877833,171.79,171.76,0.03686679]
[1748452334648,0.03877833,171.79,171.77,5.8196]
[1748452335043,0.03877833,171.79,171.76,0.03686679]
[1748452335546,30.68,171.85,171.77,6.8076476]
[1748452335747,6.8076476,171.84,171.77,6.8076476]
[1748452335942,36.4969,171.85,171.81,5.818]
[1748452336347,30.68,171.85,171.75,3.98]
[1748452336548,30.68,171.85,171.82,5.8177]
[1748452336851,30.71975086,171.85,171.82,5.86218606]
[1748452337244,36.53675086,171.85,171.82,0.04448606]
[1748452337852,30.71975086,171.85,171.82,5.86228606]
[1748452338352,30.71975086,171.85,171.82,0.04448606]
[1748452338553,30.71975086,171.85,171.83,5.8174]
[1748452339250,30.71975086,171.85,171.84,5.8173]
[1748452339459,0.03975086,171.85,171.84,5.8173]
[1748452340344,0.03975086,171.85,171.82,0.04448606]
[1748452342355,0.03975086,171.85,171.84,5.8173]
[1748452347258,5.8155,171.9,171.86,5.8165]
[1748452347761,36.475,171.91,171.82,30.66]
[1748452348165,30.66,171.91,171.82,30.66]
[1748452348458,0.04379162,171.88,171.85,0.04443326]
[1748452348853,0.04379162,171.88,171.87,5.8162]
[1748452349054,3.39816,171.94,171.85,0.04443326]
[1748452349462,9.21216,171.94,171.9,5.8151]
[1748452349765,9.21216,171.94,171.82,41.28589091]
[1748452349958,9.21216,171.94,171.86,0.0419146]
[1748452350158,0.04265497,171.9,171.86,0.0419146]
[1748452351966,0.04265497,171.9,171.86,5.8582146]
[1748452352465,0.04265497,171.9,171.86,0.0419146]
[1748452352659,0.04265497,171.9,171.86,30.7019146]
[1748452353968,0.04265497,171.9,171.87,5.8159]
[1748452354168,0.04265497,171.9,171.86,30.7019146]
[1748452354355,0.04265497,171.9,171.87,5.8159]
[1748452355355,0.04265497,171.9,171.88,5.8159]
[1748452357270,0.04265497,171.9,171.89,5.8156]
[1748452357965,0.04265497,171.9,171.88,5.8158]
[1748452358266,0.04265497,171.9,171.86,30.7019146]
[1748452358575,0.04265497,171.9,171.89,5.8156]
[1748452359464,0.04265497,171.9,171.88,5.8158]
[1748452360166,0.04265497,171.9,171.89,5.8156]
[1748452370476,0.04265497,171.9,171.86,30.7019146]
[1748452370774,0.04265497,171.9,171.86,0.0419146]
[1748452372568,5.85805497,171.9,171.86,5.8585146]
[1748452372877,0.04265497,171.9,171.86,0.0419146]
[1748452373279,5.8158,171.89,171.86,0.0419146]
[1748452373978,0.04265497,171.9,171.86,0.0419146]
[1748452374479,5.8157,171.89,171.86,5.8585146]
[1748452374675,30.64,171.88,171.86,5.8585146]
[1748452375570,5.8163,171.87,171.86,0.0419146]
[1748452375767,30.64,171.88,171.86,0.0419146]
[1748452376381,30.64,171.88,171.86,5.8584146]
[1748452377784,30.64,171.88,171.86,0.0419146]
[1748452378476,36.456,171.88,171.86,0.0419146]
[1748452379484,30.64,171.88,171.86,0.0419146]
[1748452379779,30.64,171.88,171.86,5.8585146]
[1748452381681,36.456,171.88,171.86,0.0419146]
[1748452381879,30.64,171.88,171.86,0.0419146]
[1748452382079,30.64,171.88,171.77,34.6454]
[1748452382880,5.8165,171.87,171.83,5.8173]
[1748452383181,5.85375009,171.87,171.83,0.04296317]
[1748452383373,0.03725009,171.87,171.83,0.04296317]
[1748452383574,10.663141,171.87,171.83,0.04296317]
[1748452383987,5.8168,171.86,171.83,5.86056317]
[1748452385781,5.817,171.85,171.83,0.04296317]
[1748452388079,5.8173,171.84,171.83,0.04296317]
[1748452388881,5.818,171.83,171.79,5.8187]
[1748452389485,30.64,171.84,171.74,30.64]
[1748452389486,5.818,171.82,171.74,30.64]
[1748452389686,10.62589091,171.83,171.73,3.9779]
[1748452389881,10.62589091,171.8,171.74,5.8204]
[1748452390193,5.8199,171.77,171.76,0.0420939]
[1748452390482,5.8199,171.77,171.75,0.04141231]
[1748452390682,5.8199,171.77,171.68,30.64]
[1748452390683,5.8199,171.77,171.74,0.0375828]
[1748452390877,5.86319138,171.77,171.74,0.0375828]
[1748452391081,0.04329138,171.77,171.74,0.0375828]
[1748452391485,5.86319138,171.77,171.74,0.0375828]
[1748452391884,0.04329138,171.77,171.74,0.0375828]
[1748452393488,0.04329138,171.77,171.74,5.8579828]
[1748452394089,0.04329138,171.77,171.74,0.0375828]
[1748452394286,5.86329138,171.77,171.74,0.0375828]
[1748452395389,0.04329138,171.77,171.74,5.8581828]
[1748452396589,5.86299138,171.77,171.74,5.8581828]
[1748452397692,0.04329138,171.77,171.74,5.8581828]
[1748452399290,5.86299138,171.77,171.74,5.8581828]
[1748452402003,5.8202,171.76,171.74,0.0375828]
[1748452403702,0.04329138,171.77,171.74,0.0375828]
[1748452404294,5.8202,171.76,171.74,0.0375828]
[1748452404702,0.04329138,171.77,171.74,0.0375828]
[1748452404902,10.62589091,171.75,171.7,5.8218]
[1748452405101,41.40589091,171.75,171.7,5.8218]
[1748452405300,0.04329138,171.77,171.69,30.78]
[1748452405801,0.04329138,171.77,171.7,2.059]
[1748452406103,0.04329138,171.77,171.72,0.04460648]
[1748452406900,0.04329138,171.77,171.75,5.8203]
[1748452407300,0.04329138,171.77,171.72,0.04460648]
[1748452407510,0.04329138,171.77,171.76,5.82]
[1748452408802,0.04329138,171.77,171.72,0.04460648]
[1748452409511,0.04329138,171.77,171.72,5.86570648]
[1748452410013,0.04329138,171.77,171.72,0.04460648]
[1748452410211,30.78,171.76,171.72,0.04460648]
[1748452410810,5.821,171.73,171.72,0.04460648]
[1748452416314,16.44689091,171.73,171.72,0.04460648]
[1748452417607,5.8215,171.72,171.65,1.9766]
[1748452417813,10.62589091,171.74,171.65,1.9766]
[1748452418014,5.8216,171.72,171.68,5.8225]
[1748452418614,5.85968252,171.72,171.68,5.86171978]
[1748452418821,5.8217,171.71,171.68,5.86171978]
[1748452419517,5.85958252,171.72,171.68,5.86171978]
[1748452419917,5.85958252,171.72,171.69,5.8223]
[1748452420115,36.65958252,171.72,171.69,5.8223]
[1748452420822,5.8218,171.71,171.68,5.86181978]
[1748452421119,30.83808252,171.72,171.68,5.86181978]
[1748452421514,5.8219,171.71,171.68,5.86181978]
[1748452422618,30.83808252,171.72,171.68,0.03921978]
[1748452422821,10.62589091,171.71,171.68,0.03921978]
[1748452423224,5.8224,171.69,171.68,0.03921978]
[1748452424918,5.8229,171.68,171.64,5.8239]
[1748452425119,30.68,171.68,171.64,5.8239]
[1748452425615,30.68,171.68,171.63,5.8242]
[1748452426016,0.04399658,171.67,171.64,0.03921364]
[1748452426219,5.86709658,171.67,171.64,5.86311364]
[1748452427518,0.04399658,171.67,171.64,5.86311364]
[1748452428124,0.04399658,171.67,171.65,5.8237]
[1748452428318,5.86729658,171.67,171.64,0.03921364]
[1748452428517,0.04399658,171.67,171.64,0.03921364]
[1748452429627,5.8234,171.66,171.64,0.03921364]
[1748452430019,0.04399658,171.67,171.64,0.03921364]
[1748452430219,5.86739658,171.67,171.64,0.03921364]
[1748452430438,0.04399658,171.67,171.65,5.8235]
[1748452431628,10.62589091,171.66,171.64,0.03921364]
[1748452431927,10.62589091,171.66,171.54,11.6549]
[1748452431928,10.62589091,171.66,171.52,1.8924]
[1748452432128,5.8254,171.61,171.57,5.8262]
[1748452432427,41.32589091,171.63,171.57,5.8262]
[1748452432731,0.04431787,171.62,171.58,0.02882907]
[1748452433327,0.04431787,171.62,171.6,5.8252]
[1748452433529,0.04431787,171.62,171.58,0.02882907]
[1748452435828,0.04431787,171.62,171.61,5.8251]
[1748452439523,10.62589091,171.68,171.58,3.99032907]
[1748452439729,30.7,171.67,171.58,3.99032907]
[1748452440036,30.7,171.67,171.66,5.8234]
[1748452441626,0.04190404,171.68,171.67,5.8231]
[1748452442938,30.7,171.72,171.71,5.8217]
[1748452443136,30.7,171.72,171.62,1.9119]
[1748452443137,36.5207,171.74,171.66,1.9337]
[1748452443531,30.7,171.74,171.66,1.9337]
[1748452443731,5.8211,171.73,171.66,1.9337]
[1748452444036,0.0436918,171.71,171.69,5.8221]
[1748452444941,0.0436918,171.71,171.7,5.822]
[1748452445437,5.8654918,171.71,171.68,0.04236424]
[1748452446440,5.8654918,171.71,171.69,5.8223]
[1748452446633,0.0436918,171.71,171.69,5.8223]
[1748452448436,5.8653918,171.71,171.69,5.8223]
[1748452449434,0.0436918,171.71,171.69,5.8223]
[1748452450633,10.62589091,171.7,171.62,1.9119]
[1748452450838,10.62589091,171.7,171.58,2.0573]
[1748452450839,30.7,171.69,171.58,2.0573]
[1748452451237,5.824,171.65,171.6,5.8252]
[1748452451633,5.8239,171.65,171.6,5.8252]
[1748452451840,0.03864279,171.64,171.61,0.04232338]
[1748452454942,0.03864279,171.64,171.61,5.86712338]
[1748452455133,0.03864279,171.64,171.61,0.04232338]
[1748452455537,0.03864279,171.64,171.63,5.8244]
[1748452458045,0.03864279,171.64,171.62,5.8246]
[1748452458245,0.03864279,171.64,171.61,0.04232338]
[1748452459245,0.03864279,171.64,171.61,5.86712338]